bitfinex-derivatives/quotes_ETHF0:USTF0_20250107
["timestamp","ask_amount","ask_price","bid_price","bid_amount"]
[1736250323539,0.4267,3636.7,3636.6,3.48279]
[1736250323737,0.70168,3636.7,3636.6,3.48279]
[1736250323932,0.70168,3636.7,3636.6,3.2078]
[1736250324433,3.6345,3636.7,3635.8,3.2078]
[1736250324632,2.21007506,3636.5,3635.8,3.2078]
[1736250324839,0.27504,3635.9,3635.8,3.48285]
[1736250325029,0.68752,3636.4,3635.8,3.48285]
[1736250325234,0.27504,3635.9,3635.8,3.48285]
[1736250325431,3.19618195,3636.3,3635.8,3.2078]
[1736250325930,0.27503,3636.1,3636.0,0.27504]
[1736250326131,3.19618195,3636.2,3636.1,0.27502]
[1736250326337,3.19618195,3636.2,3636.0,0.27503]
[1736250326536,0.27503,3636.1,3636.0,0.27503]
[1736250326737,3.47120195,3636.2,3635.9,0.27504]
[1736250326937,3.19618195,3636.2,3635.8,3.2078]
[1736250327128,0.27503,3636.1,3635.8,3.2078]
[1736250327332,0.4482,3636.1,3636.0,0.27504]
[1736250328334,0.4482,3636.1,3635.8,3.2078]
[1736250328539,0.27506,3635.7,3635.6,3.2078]
[1736250328740,0.27505,3635.9,3635.7,0.27506]
[1736250328936,0.4482,3636.1,3635.6,3.2078]
[1736250329943,6.40398195,3636.3,3636.2,0.27502]
[1736250330242,3.19618195,3636.3,3636.2,3.48282]
[1736250330834,0.70169,3636.7,3636.5,0.275]
[1736250331033,0.4267,3636.7,3636.2,3.2078]
[1736250331235,0.4267,3636.7,3636.3,0.27501]
[1736250331444,0.27501,3636.3,3636.2,3.48282]
[1736250331935,0.27501,3636.3,3636.2,2.80831575]
[1736250333142,0.27501,3636.3,3635.7,1.5811]
[1736250333437,3.19618195,3636.6,3635.9,3.2078]
[1736250333836,3.19618195,3636.6,3636.3,0.27501]
[1736250334039,0.27501,3636.4,3636.3,0.27501]
[1736250334242,3.19618195,3636.6,3635.9,3.2078]
[1736250334436,0.27502,3636.3,3635.9,3.2078]
[1736250334632,3.19618195,3636.6,3635.7,1.5811]
[1736250334633,3.88368195,3636.6,3635.7,1.5811]
[1736250334832,0.27504,3636.0,3635.9,0.27504]
[1736250335037,0.27505,3635.9,3635.8,0.27505]
[1736250335837,0.27504,3636.0,3635.9,0.27504]
[1736250336448,0.4185,3636.2,3635.5,3.2078]
[1736250336642,0.68758,3636.1,3635.5,0.27507]
[1736250336842,0.27507,3635.6,3635.5,0.27507]
[1736250337146,0.27509,3635.4,3635.3,0.27509]
[1736250337344,0.27508,3635.4,3635.2,0.27509]
[1736250337541,0.27511,3635.1,3634.9,0.27512]
[1736250337838,0.27511,3635.1,3634.6,6.33037506]
[1736250338059,0.27511,3635.1,3634.9,0.27512]
[1736250338434,4.4913,3635.5,3634.9,0.27512]
[1736250338752,0.27515,3634.5,3634.3,0.27516]
[1736250339043,3.2078,3635.0,3634.0,5.41787506]
[1736250339250,0.27515,3634.6,3634.0,5.41787506]
[1736250339452,0.27515,3634.6,3634.3,0.27516]
[1736250340049,0.27515,3634.6,3634.4,0.27516]
[1736250340344,0.27513,3634.8,3634.5,0.27515]
[1736250340645,0.27512,3634.9,3634.7,0.27513]
[1736250340841,0.68771,3635.4,3635.2,0.2751]
[1736250340842,3.19618195,3635.3,3635.2,0.2751]
[1736250341546,3.19618195,3635.3,3634.9,3.2078]
[1736250341750,0.27509,3635.3,3635.0,0.27511]
[1736250342050,0.27508,3635.4,3635.2,0.27509]
[1736250342737,0.4185,3635.5,3635.4,0.27508]
[1736250342946,3.6509,3635.9,3635.5,0.27507]
[1736250343145,4.0889,3635.9,3635.0,0.68779]
[1736250343447,6.84833106,3635.8,3635.0,0.68779]
[1736250343743,4.0889,3635.9,3635.2,2.21007506]
[1736250343947,4.0889,3635.9,3635.4,3.2078]
[1736250343948,0.8811,3635.9,3635.4,3.2078]
[1736250344346,1.15614,3635.9,3635.7,0.27506]
[1736250344542,0.438,3635.9,3635.5,0.4436]
[1736250344850,0.27503,3636.1,3635.9,0.27504]
[1736250345048,0.27504,3636.0,3635.8,0.27505]
[1736250345244,0.27503,3636.1,3635.9,0.27504]
[1736250345450,0.27504,3636.0,3635.8,0.27505]
[1736250345655,7.02394397,3636.2,3635.6,0.4528]
[1736250345945,0.27504,3636.0,3635.8,0.27505]
[1736250346353,0.27505,3635.8,3635.6,0.72786]
[1736250346544,7.02394397,3636.2,3635.7,0.27505]
[1736250346849,0.27503,3636.1,3635.8,0.27504]
[1736250347052,0.27505,3635.9,3635.7,0.27506]
[1736250347354,0.27505,3635.9,3635.7,0.27505]
[1736250347650,0.27504,3636.0,3635.7,0.27505]
[1736250347852,0.27504,3636.0,3635.8,0.27505]
[1736250348949,0.27505,3635.9,3635.7,0.27506]
[1736250349365,7.02394397,3636.2,3635.6,0.4528]
[1736250349366,0.27506,3635.7,3635.6,0.4528]
[1736250349849,0.27507,3635.6,3635.4,3.48288]
[1736250350045,0.27507,3635.6,3635.4,3.2078]
[1736250350250,0.6876,3636.0,3635.4,3.2078]
[1736250350448,0.6876,3636.0,3635.4,3.48288]
[1736250350648,0.27507,3635.5,3635.4,3.48288]
[1736250351351,3.60892525,3635.9,3635.4,3.2078]
[1736250351551,0.27505,3635.8,3635.5,0.27507]
[1736250351746,3.60892525,3635.9,3635.4,3.2078]
[1736250351949,0.27505,3635.9,3635.8,0.27505]
[1736250352148,3.19618195,3636.0,3635.4,3.2078]
[1736250352344,0.27505,3635.8,3635.7,0.27505]
[1736250352555,0.27505,3635.8,3635.4,3.2078]
[1736250352556,0.27507,3635.6,3635.5,0.27507]
[1736250353055,0.27507,3635.6,3635.4,3.48288]
[1736250353255,2.21007506,3636.1,3635.4,3.48288]
[1736250353556,0.27507,3635.5,3635.4,3.48288]
[1736250354748,0.27507,3635.5,3635.4,3.2078]
[1736250355552,2.48514506,3635.5,3635.4,3.2078]
[1736250356155,2.21007506,3635.5,3635.0,3.2078]
[1736250356355,0.2751,3635.1,3635.0,3.48291]
[1736250357051,0.2751,3635.1,3635.0,0.27511]
[1736250357256,0.27512,3635.0,3634.9,0.27512]
[1736250357450,0.68776,3635.2,3634.5,3.6645]
[1736250357654,0.27514,3634.7,3634.6,0.27514]
[1736250357856,0.68777,3635.1,3634.5,3.93965]
[1736250358059,0.4272,3635.4,3634.5,3.6645]
[1736250358254,0.27514,3634.7,3634.6,0.27514]
[1736250358656,0.27512,3635.0,3634.6,0.27514]
[1736250358857,0.27512,3635.0,3634.8,0.27512]
[1736250359051,0.27512,3634.9,3634.8,0.27512]
[1736250359253,3.19618195,3635.3,3634.5,3.93965]
[1736250359254,0.27514,3634.6,3634.5,3.93965]
[1736250359658,0.27514,3634.6,3634.5,3.2078]
[1736250360357,0.27517,3634.2,3633.9,1.144]
[1736250360562,0.4375,3634.5,3633.9,1.144]
[1736250360762,0.27519,3634.1,3633.9,0.27519]
[1736250360963,0.27519,3634.0,3633.9,0.27519]
[1736250361156,0.27519,3634.1,3633.9,0.27519]
[1736250361555,0.27518,3634.2,3634.0,0.27519]
[1736250361866,0.27518,3634.2,3634.1,0.27518]
[1736250362163,0.4375,3634.5,3633.8,3.2078]
[1736250362664,0.27517,3634.2,3634.1,0.27518]
[1736250363068,0.27517,3634.2,3634.0,0.27518]
[1736250363254,0.27519,3634.0,3633.9,0.2752]
[1736250363459,0.688,3633.9,3632.6,3.2078]
[1736250363665,2.21007506,3633.0,3632.6,3.2078]
[1736250363968,0.27529,3632.7,3632.6,3.2078]
[1736250364359,0.4585,3632.9,3631.7,2.63237506]
[1736250364360,0.4585,3632.9,3632.1,3.2078]
[1736250364670,2.21007506,3632.7,3632.1,3.2078]
[1736250364969,0.27532,3632.3,3632.1,3.2078]
[1736250365265,1.198,3632.2,3631.1,3.2078]
[1736250365465,1.198,3632.2,3629.4,1.20474696]
[1736250365466,0.27544,3630.7,3629.9,0.27549]
[1736250365659,2.21007506,3630.2,3629.9,0.27549]
[1736250365859,2.48552506,3630.5,3629.8,3.2078]
[1736250366063,2.48553506,3630.5,3629.8,3.48331]
[1736250366260,9.95764588,3630.6,3629.4,3.2078]
[1736250366261,2.21007506,3630.2,3629.4,3.2078]
[1736250366562,3.2078,3630.2,3629.4,3.2078]
[1736250366864,2.21007506,3630.5,3629.4,3.2078]
[1736250367061,3.2078,3630.6,3630.0,0.27548]
[1736250367264,3.2078,3630.8,3629.8,3.2078]
[1736250367565,0.27544,3630.7,3629.9,0.2755]
[1736250367862,0.27544,3630.7,3628.6,3.2078]
[1736250367863,5.83066998,3630.0,3628.6,3.2078]
[1736250368056,3.2078,3629.2,3628.0,3.2078]
[1736250368264,0.27557,3629.1,3628.4,3.2078]
[1736250368460,0.27557,3629.0,3628.4,3.2078]
[1736250368663,0.27558,3628.9,3628.2,0.27563]
[1736250368966,6.88462131,3628.9,3628.5,0.2756]
[1736250369170,0.27553,3629.5,3628.6,0.27559]
[1736250369370,3.2078,3629.6,3628.7,0.27558]
[1736250369371,0.27554,3629.4,3628.7,0.27558]
[1736250369568,7.28496848,3629.4,3628.6,0.27559]
[1736250369870,3.2078,3629.4,3628.1,2.62286998]
[1736250370367,3.2078,3628.9,3628.0,4.4568]
[1736250370671,0.27555,3629.2,3628.5,0.2756]
[1736250370866,3.2078,3629.4,3628.4,3.2078]
[1736250371061,3.2078,3629.8,3628.8,3.2078]
[1736250371262,3.2078,3629.8,3629.2,3.2078]
[1736250371463,3.2078,3629.8,3629.3,0.27554]
[1736250371657,3.2078,3629.8,3629.2,3.48334]
[1736250371863,3.2078,3629.8,3629.2,3.2078]
[1736250372264,3.2078,3629.8,3629.3,2.62286998]
[1736250372466,3.2078,3630.5,3629.7,5.83066998]
[1736250372665,0.27543,3630.9,3630.1,0.27548]
[1736250372864,3.2078,3631.1,3630.5,0.27545]
[1736250372865,6.86392418,3630.8,3630.5,0.27545]
[1736250373067,3.2078,3631.1,3630.1,5.83066998]
[1736250373258,3.2078,3631.1,3630.3,2.79874411]
[1736250373657,2.63302998,3631.7,3631.0,0.27541]
[1736250373658,0.28552,3631.7,3631.0,0.27541]
[1736250373864,0.01016,3631.7,3630.9,3.2078]
[1736250374059,0.01016,3631.7,3631.6,0.27537]
[1736250374267,0.01016,3631.7,3630.9,3.2078]
[1736250374465,0.01016,3631.7,3631.6,0.27537]
[1736250374677,0.01016,3631.7,3631.1,2.62286998]
[1736250374971,0.01016,3631.7,3631.2,0.2754]
[1736250375168,0.01016,3631.7,3631.1,2.62286998]
[1736250375372,0.27539,3631.4,3630.8,0.27543]
[1736250375761,0.27538,3631.4,3630.8,0.27543]
[1736250375961,0.27538,3631.4,3630.9,0.27542]
[1736250376168,3.2078,3631.5,3630.6,0.4516]
[1736250376569,0.27543,3630.9,3630.3,2.89832998]
[1736250376771,3.2078,3631.0,3630.3,2.62286998]
[1736250376970,3.2078,3631.0,3630.5,0.27545]
[1736250377267,0.27544,3630.8,3630.2,0.27547]
[1736250377468,3.2078,3631.0,3630.0,0.4508]
[1736250377873,3.2078,3631.0,3630.4,0.27545]
[1736250378070,3.2078,3631.0,3630.0,0.4508]
[1736250378377,0.27543,3630.9,3630.3,0.27546]
[1736250378570,0.27543,3630.8,3630.3,0.27546]
[1736250378877,0.27543,3630.9,3630.4,0.27546]
[1736250379384,3.2078,3631.0,3630.3,2.62286998]
[1736250379672,0.27539,3631.4,3630.9,0.27542]
[1736250379872,0.27538,3631.4,3630.9,0.27542]
[1736250380075,3.48318,3631.5,3630.3,2.89886998]
[1736250380274,0.2754,3631.2,3630.7,0.27543]
[1736250380468,3.2078,3631.1,3630.9,0.27542]
[1736250380669,3.2078,3631.5,3631.0,0.27541]
[1736250380868,3.2078,3631.5,3630.3,2.62286998]
[1736250381069,3.48318,3631.5,3631.1,0.27541]
[1736250381667,3.48318,3631.5,3630.5,1.249]
[1736250381875,3.2078,3631.5,3630.5,1.249]
[1736250382080,3.2078,3631.5,3630.7,2.62286998]
[1736250382272,3.2078,3631.5,3631.4,0.27538]
[1736250382478,3.2078,3631.5,3631.3,0.27539]
[1736250382678,3.2078,3631.5,3631.1,2.62286998]
[1736250383076,0.01016,3631.7,3631.4,3.2078]
[1736250383379,0.01016,3631.7,3631.6,2.89823998]
[1736250383878,3.2078,3632.6,3631.6,2.62286998]
[1736250384081,3.2078,3632.6,3632.0,2.62286998]
[1736250384381,0.27531,3632.4,3632.0,0.27534]
[1736250384576,3.4831,3632.6,3632.0,0.27534]
[1736250384876,6.91508534,3632.5,3631.5,3.2078]
[1736250385175,6.91508534,3632.5,3631.6,3.31129998]
[1736250385377,6.91508534,3632.5,3632.2,0.27532]
[1736250385780,6.91508534,3632.5,3631.6,3.31129998]
[1736250385983,3.2078,3632.6,3632.4,0.27531]
[1736250386180,3.2078,3632.6,3631.6,0.27537]
[1736250386181,0.27534,3632.0,3631.6,0.27537]
[1736250386377,0.27535,3631.9,3631.4,0.69868]
[1736250386574,0.27535,3632.0,3631.6,0.27537]
[1736250386778,0.27534,3632.0,3631.6,0.27537]
[1736250386978,3.48313,3632.2,3631.8,0.27535]
[1736250387183,0.27539,3631.4,3631.0,0.27541]
[1736250387383,3.2078,3631.3,3631.0,0.27541]
[1736250387677,3.4832,3631.3,3630.9,0.27542]
[1736250387878,0.2754,3631.2,3630.8,0.27543]
[1736250388071,0.2754,3631.2,3630.4,3.2078]
[1736250388276,0.27541,3631.1,3630.7,0.27544]
[1736250388576,3.2078,3631.3,3630.4,3.2078]
[1736250388775,0.27542,3631.0,3630.6,0.27544]
[1736250389385,3.2078,3630.7,3629.6,0.4212]
[1736250389580,2.62286998,3630.6,3629.6,0.4332]
[1736250389785,0.27548,3630.2,3629.7,0.27551]
[1736250390081,0.27548,3630.2,3629.8,0.2755]
[1736250390289,0.27548,3630.2,3629.6,0.4332]
[1736250390487,0.2755,3629.9,3629.6,0.4332]
[1736250390888,0.27548,3630.2,3629.7,0.27551]
[1736250391082,3.2078,3630.3,3629.6,0.4332]
[1736250391586,3.2078,3630.3,3629.9,0.27549]
[1736250391780,3.48327,3630.3,3629.9,0.2755]
[1736250392185,3.2078,3630.3,3629.7,3.2078]
[1736250392386,3.2078,3630.3,3630.0,0.27549]
[1736250392590,3.2078,3630.3,3629.8,0.27551]
[1736250392782,3.2078,3630.3,3629.6,0.31459473]
[1736250393186,0.27549,3630.0,3629.6,0.59011473]
[1736250393690,3.2078,3630.3,3629.6,0.31459473]
[1736250394584,3.48327,3630.3,3629.9,0.2755]
[1736250394787,3.2078,3630.3,3630.0,0.27549]
[1736250394989,3.2078,3630.3,3630.2,0.27548]
[1736250395183,3.2078,3630.3,3629.6,0.59059473]
[1736250395389,3.2078,3630.3,3629.7,0.27551]
[1736250395585,3.48327,3630.3,3629.9,0.2755]
[1736250395783,3.2078,3630.0,3629.9,0.2755]
[1736250397093,0.2755,3629.9,3629.0,7.07966998]
[1736250397290,0.2755,3629.9,3629.5,0.27553]
[1736250397783,3.2078,3630.0,3629.4,0.27553]
[1736250397986,0.27551,3629.8,3629.5,0.27553]
[1736250398187,3.2078,3630.0,3629.2,0.461]
[1736250398396,3.2078,3630.0,3629.2,1.991]
[1736250399185,3.2078,3630.0,3629.9,0.2755]
[1736250401085,3.48329,3630.0,3629.7,0.27551]
[1736250401286,3.2078,3630.0,3629.3,1.238]
[1736250401487,3.48329,3630.0,3629.8,0.2755]
[1736250401691,3.2078,3630.0,3629.8,0.2755]
[1736250402088,3.2078,3630.0,3629.3,1.238]
[1736250402289,0.2755,3629.9,3629.7,0.27551]
[1736250402486,3.2078,3630.0,3629.9,0.2755]
[1736250402694,3.2078,3630.0,3629.3,1.238]
[1736250402995,3.4833,3630.0,3629.7,0.27551]
[1736250403188,3.2078,3630.0,3629.9,0.2755]
[1736250404797,3.2078,3630.6,3630.5,0.27545]
[1736250404996,2.10894092,3630.5,3629.9,0.68875]
[1736250405194,2.10894092,3630.5,3630.4,0.27546]
[1736250406200,2.10894092,3630.6,3630.3,3.2078]
[1736250406496,2.10894092,3630.6,3630.5,0.27545]
[1736250407286,3.2078,3631.0,3630.9,0.27542]
[1736250408593,5.31674092,3631.0,3630.9,0.27542]
[1736250409191,2.10894092,3631.0,3630.9,0.27542]
[1736250410592,2.10894092,3631.2,3630.3,3.2078]
[1736250410894,2.10894092,3631.2,3631.1,0.27541]
[1736250411104,2.10894092,3631.2,3630.4,1.238]
[1736250411297,2.10894092,3631.2,3630.6,0.68862]
[1736250411603,6.40398195,3631.3,3631.2,0.2754]
[1736250412298,6.81718999,3631.3,3630.6,0.68862]
[1736250412498,6.81718999,3631.3,3631.2,0.2754]
[1736250412798,0.27541,3631.1,3630.9,0.27542]
[1736250413099,0.27545,3630.6,3630.2,0.27548]
[1736250413302,3.2078,3630.6,3630.5,0.27545]
[1736250413600,5.33416211,3630.6,3630.2,0.27548]
[1736250413802,5.33416211,3630.6,3630.5,0.27545]
[1736250413994,5.33416211,3630.6,3630.0,0.68872]
[1736250414192,5.33416211,3630.6,3629.8,3.89657]
[1736250414404,0.27545,3630.5,3630.1,0.27548]
[1736250414590,6.06316211,3630.6,3630.2,0.27547]
[1736250414796,6.06316211,3630.6,3630.3,0.27547]
[1736250415093,6.06316211,3630.6,3629.5,0.4438]
[1736250415094,0.68864,3630.5,3629.5,0.4438]
[1736250415296,3.2078,3629.9,3629.7,0.27551]
[1736250415598,3.2078,3629.9,3629.0,1.13102]
[1736250415599,7.03050136,3629.8,3629.0,1.13102]
[1736250415800,3.2078,3629.5,3629.4,0.27554]
[1736250415998,3.2078,3629.5,3629.3,0.27554]
[1736250416303,3.2078,3629.5,3628.8,0.4438]
[1736250416604,3.2078,3629.1,3629.0,0.27557]
[1736250417699,3.48336,3629.1,3628.3,0.96505]
[1736250417895,3.48336,3629.1,3628.9,0.27557]
[1736250417896,3.2078,3629.1,3628.9,0.27557]
[1736250418503,3.2078,3629.1,3628.3,0.276]
[1736250418702,3.2078,3629.1,3628.9,0.27557]
[1736250418901,3.2078,3629.1,3628.2,3.2078]
[1736250419103,3.48337,3629.1,3628.6,0.27559]
[1736250419300,3.2078,3628.7,3628.1,1.238]
[1736250419704,3.2078,3628.7,3628.0,2.62286998]
[1736250420003,3.2078,3628.7,3628.6,0.2756]
[1736250420899,2.12636211,3629.2,3629.1,0.27556]
[1736250421105,2.12636211,3629.2,3629.0,0.27556]
[1736250421501,2.12636211,3629.2,3628.6,1.238]
[1736250421502,0.27555,3629.3,3628.9,0.27557]
[1736250421698,2.85746211,3629.7,3628.9,0.27557]
[1736250421699,3.2078,3629.0,3628.9,0.27557]
[1736250422403,3.2078,3629.0,3628.8,0.27558]
[1736250422605,3.2078,3629.0,3628.9,0.27557]
[1736250427304,3.2078,3629.0,3628.9,2.49643502]
[1736250427699,3.2078,3629.4,3629.3,0.27554]
[1736250428307,3.2078,3630.1,3630.0,0.27549]
[1736250431309,3.2078,3630.1,3630.0,2.49635502]
[1736250432104,3.2078,3630.1,3630.0,0.27549]
[1736250432312,3.2078,3630.1,3630.0,2.49635502]
[1736250433204,3.2078,3630.1,3630.0,0.27549]
[1736250433409,1.13380001,3630.1,3630.0,5.27549]
[1736250433713,1.13380001,3630.1,3630.0,1.48849]
[1736250434013,1.13380001,3630.1,3630.0,0.27549]
[1736250434208,1.13380001,3630.1,3629.6,3.8843]
[1736250434413,1.13380001,3630.1,3629.8,0.2755]
[1736250434414,1.40928001,3630.1,3629.8,0.2755]
[1736250434615,1.13380001,3630.1,3630.0,0.27549]
[1736250435713,1.13380001,3630.1,3630.0,2.49635502]
[1736250435919,1.13380001,3630.1,3630.0,0.27549]
[1736250436211,1.13380001,3630.1,3630.0,2.49635502]
[1736250437016,1.13380001,3630.1,3630.0,0.27549]
[1736250438214,1.13380001,3630.1,3630.0,1.48849]
[1736250438518,1.13380001,3630.1,3630.0,0.27549]
[1736250444014,1.13380001,3630.1,3629.7,4.15776502]
[1736250444315,1.13380001,3630.1,3629.6,4.4208]
[1736250445018,1.13380001,3630.1,3630.0,0.27549]
[1736250447215,1.13380001,3630.1,3629.6,3.2078]
[1736250447415,1.13380001,3630.1,3629.6,3.48332]
[1736250447616,0.27551,3629.8,3629.6,3.48332]
[1736250448222,1.13380001,3630.1,3629.6,3.2078]
[1736250448623,0.27551,3629.7,3629.6,3.2078]
[1736250450418,2.40420032,3629.7,3629.6,3.2078]
[1736250451419,0.27551,3629.7,3629.6,3.2078]
[1736250452826,0.27551,3629.7,3629.6,0.72726118]
[1736250453225,2.40420032,3629.7,3629.6,0.72726118]
[1736250455527,0.27551,3629.7,3629.6,1.00278118]
[1736250456027,0.27551,3629.7,3629.6,0.72726118]
[1736250457133,0.27551,3629.7,3629.6,1.00278118]
[1736250457325,5.41271508,3629.8,3629.0,0.68891]
[1736250457526,0.27554,3629.4,3629.3,0.27553]
[1736250458022,0.27556,3629.3,3629.2,0.27555]
[1736250458331,0.95306,3629.3,3629.2,0.27555]
[1736250459925,0.6775,3629.3,3628.6,1.9224]
[1736250460131,0.27558,3629.0,3628.9,0.27556]
[1736250460430,0.68891,3629.1,3628.0,1.3831]
[1736250460640,0.27561,3628.6,3628.5,0.2756]
[1736250461634,0.27559,3628.8,3628.7,0.27558]
[1736250462029,2.4049086,3628.8,3628.7,0.27558]
[1736250462732,2.1293186,3628.8,3628.7,0.27558]
[1736250462934,2.1293186,3629.1,3628.5,2.22086502]
[1736250463124,2.1293186,3629.1,3629.0,0.27557]
[1736250463440,0.27553,3629.5,3629.4,0.27553]
[1736250463630,0.27553,3629.5,3629.0,0.27557]
[1736250463631,0.27554,3629.4,3629.3,0.27554]
[1736250463827,0.27554,3629.5,3629.4,0.27553]
[1736250464028,0.27555,3629.3,3629.2,0.27555]
[1736250464534,0.27556,3629.2,3629.1,0.27555]
[1736250465423,0.27556,3629.1,3629.0,1.3247]
[1736250465831,0.27561,3628.5,3628.4,0.2756]
[1736250466725,0.27562,3628.4,3628.3,0.27562]
[1736250466928,0.27561,3628.6,3628.5,0.27559]
[1736250467124,0.27562,3628.5,3628.4,0.27561]
[1736250468034,2.12885927,3628.8,3628.7,0.27559]
[1736250468035,2.40445927,3628.8,3628.7,0.27559]
[1736250468631,2.40445927,3628.8,3628.2,2.90992502]
[1736250468632,2.12885927,3628.8,3628.2,2.90992502]
[1736250468832,0.27561,3628.6,3628.5,0.2756]
[1736250469036,0.27562,3628.4,3628.3,0.27561]
[1736250470333,2.40443927,3628.9,3628.8,0.27558]
[1736250470529,0.27559,3628.8,3628.7,0.27559]
[1736250471634,0.27559,3628.8,3628.3,0.27561]
[1736250471635,0.27562,3628.4,3628.3,0.27561]
[1736250471839,0.27564,3628.1,3628.0,0.27564]
[1736250472040,0.27563,3628.2,3628.1,0.27562]
[1736250472435,0.27564,3628.1,3628.0,0.27564]
[1736250472636,2.12885927,3629.0,3627.2,0.47975591]
[1736250472637,2.22086502,3628.2,3627.2,0.47975591]
[1736250472834,0.2757,3627.3,3627.2,0.47975591]
[1736250473033,2.49656502,3627.3,3627.2,0.47975591]
[1736250473240,9.02067477,3627.3,3627.2,0.47975591]
[1736250473433,9.02067477,3627.3,3626.7,0.27574]
[1736250473434,0.27574,3626.8,3626.7,0.27574]
[1736250473638,2.22086502,3627.0,3626.1,1.4012]
[1736250473937,0.65861466,3644.8,3626.6,2.22086502]
[1736250474243,0.27571,3627.2,3627.0,0.27571]
[1736250474542,2.91004502,3627.7,3626.6,1.189]
[1736250474933,0.27572,3627.0,3626.8,0.27573]
[1736250475138,7.05615477,3627.6,3626.5,2.22086502]
[1736250475341,2.12885927,3627.7,3626.8,2.91020502]
[1736250475639,2.12885927,3627.7,3627.3,0.27569]
[1736250475640,0.27569,3627.5,3627.3,0.27569]
[1736250475844,2.12885927,3627.7,3627.0,0.7157]
[1736250476030,0.27568,3627.6,3627.0,0.7157]
[1736250476234,0.27568,3627.6,3627.5,0.27568]
[1736250476541,0.27568,3627.5,3627.4,0.27568]
[1736250477633,0.27569,3627.4,3627.0,0.7157]
[1736250477833,0.27566,3627.9,3627.0,0.7157]
[1736250478034,0.27566,3627.8,3627.2,0.68927]
[1736250478234,6.90180432,3627.8,3627.7,0.27566]
[1736250478439,4.34972429,3628.2,3627.7,0.27566]
[1736250478440,2.12885927,3628.2,3627.7,0.27566]
[1736250478633,2.12885927,3628.2,3628.1,0.27564]
[1736250478834,2.12885927,3628.2,3627.9,2.22086502]
[1736250478835,2.12885927,3628.5,3627.9,2.22086502]
[1736250479034,2.12885927,3628.5,3628.4,0.27561]
[1736250479836,0.2756,3628.6,3627.9,0.96478]
[1736250480037,2.22086502,3628.8,3627.8,0.731]
[1736250480448,6.95884226,3628.7,3627.8,0.731]
[1736250480638,6.95884226,3628.7,3628.1,0.27563]
[1736250480838,6.95884226,3628.7,3627.8,0.731]
[1736250481040,0.27564,3628.0,3627.9,0.27565]
[1736250481245,0.27564,3628.1,3627.9,0.27565]
[1736250481446,0.27565,3627.9,3627.8,0.731]
[1736250481643,6.96728094,3628.5,3627.8,0.731]
[1736250481844,0.27561,3628.4,3627.9,0.27565]
[1736250482050,0.27565,3628.0,3627.8,0.731]
[1736250482242,0.68896,3628.8,3627.8,0.731]
[1736250482243,2.22086502,3628.4,3627.8,0.731]
[1736250482548,0.27565,3627.9,3627.8,0.731]
[1736250483143,8.99684337,3628.2,3627.3,0.7188]
[1736250483341,0.27568,3627.6,3627.4,0.27568]
[1736250483543,0.6891,3628.1,3627.4,0.27569]
[1736250483848,7.01839818,3628.0,3627.3,0.7188]
[1736250484045,0.2757,3627.3,3627.2,0.9403]
[1736250484459,0.2757,3627.3,3627.2,0.6646]
[1736250485244,2.22086502,3627.6,3626.5,0.6769]
[1736250485444,2.22086502,3627.6,3626.6,0.7199]
[1736250485641,7.47735869,3627.7,3626.7,2.22086502]
[1736250485843,0.27568,3627.5,3627.4,0.27568]
[1736250486045,0.27568,3627.6,3627.4,0.27568]
[1736250486442,0.27568,3627.6,3626.8,1.87834]
[1736250486443,6.76415869,3627.8,3626.8,1.87834]
[1736250486641,0.27565,3628.0,3627.8,0.27565]
[1736250486843,2.12885927,3628.5,3628.1,0.27564]
[1736250487147,2.12885927,3628.5,3628.4,2.49647502]
[1736250487739,2.12885927,3628.5,3628.4,2.77247502]
[1736250487943,3.19328891,3628.7,3628.6,0.2756]
[1736250488258,2.1216902,3629.6,3629.5,0.27553]
[1736250489155,2.1216902,3629.6,3629.5,5.27553]
[1736250489449,5.39151856,3630.1,3629.5,5.27553]
[1736250489450,1.13380001,3630.1,3630.0,0.27549]
[1736250489652,1.13380001,3630.1,3630.0,1.46549]
[1736250490754,1.13380001,3630.1,3630.0,9.08819977]
[1736250491246,0.18529001,3630.1,3630.0,9.08819977]
[1736250491449,0.7217,3631.6,3630.0,8.92270977]
[1736250491653,0.27534,3632.0,3631.5,0.27537]
[1736250491850,4.53305855,3632.1,3631.5,0.27537]
[1736250492048,6.75855697,3632.0,3631.0,1.19]
[1736250492353,6.75855697,3632.0,3631.0,0.27541]
[1736250492552,6.75855697,3632.0,3630.5,2.62270977]
[1736250492856,6.75855697,3632.0,3630.9,2.62270977]
[1736250493049,6.99235807,3632.1,3630.9,43.42270977]
[1736250493245,6.99235807,3631.9,3630.9,43.42270977]
[1736250493550,0.27543,3630.8,3630.1,3.81270977]
[1736250493760,0.68842,3631.7,3630.1,3.81270977]
[1736250493947,0.27542,3631.0,3630.2,40.8]
[1736250494254,6.8757294,3631.6,3630.5,2.62270977]
[1736250494455,0.27537,3631.7,3631.2,0.2754]
[1736250494651,7.05659746,3631.7,3631.3,0.27539]
[1736250494854,3.33070977,3632.2,3630.9,2.62270977]
[1736250495154,0.708,3632.2,3631.3,2.62270977]
[1736250495552,0.98333,3632.2,3631.8,0.27535]
[1736250495855,0.708,3632.2,3631.7,2.62270977]
[1736250496057,0.7056,3632.4,3632.3,0.27532]
[1736250496853,0.7056,3632.4,3632.3,41.07532]
[1736250497050,0.7056,3632.4,3632.3,40.8]
[1736250497250,0.98091,3632.4,3632.3,40.8]
[1736250497649,0.7056,3632.4,3632.3,41.07532]
[1736250498054,0.6848,3633.0,3632.3,40.8]
[1736250498252,0.6848,3633.0,3632.8,0.27528]
[1736250498547,1.3559,3633.3,3632.5,2.62270977]
[1736250498755,1.3559,3633.3,3633.2,0.27525]